fUSD/lending_fUSD_20240618
["ID","MTS","AMOUNT","RATE_DAILY","PERIOD"]
[329788834,1718674285011,-500.0,0.00022465,3]
[329788835,1718674285020,-3142.54,0.00022465,3]
[329788836,1718674285030,-767.86,0.00022465,3]
[329788837,1718674285040,-1171.23,0.00022465,3]
[329788838,1718674285049,-500.0,0.00022465,3]
[329788839,1718674285058,-622.24,0.00022465,3]
[329788840,1718674285068,-500.0,0.00022465,3]
[329788841,1718674285078,-2084.47,0.00022465,3]
[329788842,1718674285088,-500.0,0.00022465,3]
[329788843,1718674285101,-500.0,0.00022465,3]
[329788844,1718674285110,-1362.62,0.00022465,3]
[329788845,1718674285120,-500.0,0.00022465,3]
[329788846,1718674285129,-500.0,0.00022465,3]
[329788847,1718674285139,-500.0,0.00022465,3]
[329788848,1718674285148,-500.0,0.00022465,3]
[329788849,1718674285157,-2551.19,0.00022465,3]
[329788850,1718674285167,-1068.89,0.00022465,3]
[329788851,1718674285176,-648.36,0.00022465,3]
[329788852,1718674285186,-500.0,0.00022465,3]
[329788853,1718674285196,-1045.01,0.00022465,3]
[329788854,1718674285206,-3452.57,0.00022465,3]
[329788855,1718674285217,-3978.37,0.00022465,3]
[329788856,1718674285227,-500.0,0.00022465,3]
[329788857,1718674285236,-1665.91,0.00022465,3]
[329788858,1718674285246,-500.0,0.00022465,3]
[329788859,1718674285256,-500.0,0.00022465,3]
[329788860,1718674285267,-3368.33,0.00022465,3]
[329788861,1718674285276,-5565.34,0.00022465,3]
[329788862,1718674285287,-968.79,0.00022465,3]
[329788863,1718674285297,-500.0,0.00022465,3]
[329788864,1718674285307,-3262.05,0.00022465,3]
[329788865,1718674285318,-1385.54,0.00022465,3]
[329788866,1718674285329,-305.2115726,0.00022465,3]
[329788867,1718674285339,-1518.31,0.00022465,3]
[329788868,1718674285355,-684.66,0.00022465,3]
[329788869,1718674285365,-500.0,0.00022465,3]
[329788870,1718674285375,-500.0,0.00022465,3]
[329788871,1718674285386,-1202.6,0.00022465,3]
[329788872,1718674285395,-500.0,0.00022465,3]
[329788873,1718674285406,-10734.0,0.00022465,3]
[329788874,1718674285416,-555.92,0.00022465,3]
[329788875,1718674285425,-500.0,0.00022465,3]
[329788876,1718674285434,-500.0,0.00022465,3]
[329788877,1718674285446,-780.03,0.00022465,3]
[329788878,1718674285455,-500.0,0.00022465,3]
[329788879,1718674285466,-500.0,0.00022465,3]
[329788880,1718674285479,-500.0,0.00022465,3]
[329788881,1718674285490,-1744.01,0.00022465,3]
[329788882,1718674285500,-500.0,0.00022465,3]
[329788883,1718674285510,-3731.99,0.00022465,3]
[329788884,1718674285520,-500.0,0.00022465,3]
[329788885,1718674285531,-1219.32,0.00022465,3]
[329788886,1718674285543,-500.0,0.00022465,3]
[329788887,1718674285556,-500.0,0.00022465,3]
[329788888,1718674285566,-500.0,0.00022465,3]
[329788889,1718674285576,-1698.85,0.00022465,3]
[329788890,1718674285585,-500.0,0.00022465,3]
[329788891,1718674285595,-5901.94,0.00022465,3]
[329788892,1718674285616,-601.86,0.00022465,3]
[329788893,1718674285627,-824.88,0.00022465,3]
[329788894,1718674285637,-4224.5,0.00022465,3]
[329788895,1718674285647,-1509.65,0.00022465,3]
[329788896,1718674285657,-748.26,0.00022465,3]
[329788897,1718674285667,-571.04,0.00022465,3]
[329788898,1718674285677,-2832.97,0.00022465,3]
[329788899,1718674285687,-500.0,0.00022465,3]
[329788900,1718674285696,-10283.61,0.00022465,3]
[329788901,1718674285707,-2815.73,0.00022465,3]
[329788902,1718674285717,-500.0,0.00022465,3]
[329788903,1718674285726,-7683.1,0.00022465,3]
[329788904,1718674285736,-440.27654616,0.00022465,3]
[329788905,1718674285745,-500.0,0.00022465,3]
[329788906,1718674285755,-500.0,0.00022465,3]
[329788907,1718674285765,-652.26,0.00022465,3]
[329788908,1718674285775,-500.0,0.00022465,3]
[329788909,1718674285785,-4441.39,0.00022465,3]
[329788910,1718674285795,-785.18,0.00022465,3]
[329788911,1718674285805,-1258.99,0.00022465,3]
[329788912,1718674285815,-500.0,0.00022465,3]
[329788913,1718674285825,-1984.01,0.00022465,3]
[329788914,1718674285835,-500.0,0.00022465,3]
[329788915,1718674285847,-711.12,0.00022465,3]
[329788916,1718674285863,-1914.48,0.00022465,3]
[329788917,1718674285872,-2844.91,0.00022465,3]
[329788918,1718674285882,-500.0,0.00022465,3]
[329788919,1718674285892,-500.0,0.00022465,3]
[329788920,1718674285903,-3734.02,0.00022465,3]
[329788921,1718674285913,-2239.47,0.00022465,3]
[329788922,1718674285923,-500.0,0.00022465,3]
[329788923,1718674285933,-2384.25,0.00022465,3]
[329788924,1718674285943,-1198.33,0.00022465,3]
[329788925,1718674285952,-500.0,0.00022465,3]
[329788926,1718674285962,-908.82,0.00022465,3]
[329788927,1718674285971,-1179.67,0.00022465,3]
[329788928,1718674285981,-364.87756042,0.00022465,2]
[329788929,1718674285991,-189.6,0.00022465,3]
[329788930,1718674286001,-4377.28,0.00022465,3]
[329788931,1718674286011,-362.42,0.00022465,3]
[329788932,1718674286021,-7636.75,0.00022465,3]
[329788933,1718674286031,-500.0,0.00022465,3]
[329788934,1718674286041,-874.67,0.00022465,3]
[329788935,1718674286051,-631.17,0.00022465,3]
[329788936,1718674286061,-3639.01,0.00022465,3]
[329788937,1718674286070,-801.27,0.00022465,3]
[329788938,1718674286080,-4152.02,0.00022465,3]
[329788939,1718674286090,-818.56,0.00022465,3]
[329788940,1718674286104,-500.0,0.00022465,3]
[329788941,1718674286114,-500.0,0.00022465,3]
[329788942,1718674286125,-2147.44,0.00022465,3]
[329788943,1718674286135,-500.0,0.00022465,3]
[329788944,1718674286144,-10636.95,0.00022465,3]
[329788945,1718674286153,-2105.48,0.00022465,3]
[329788946,1718674286162,-500.0,0.00022465,3]
[329788947,1718674286172,-1345.61,0.00022465,3]
[329788948,1718674286182,-24566.15,0.00022465,3]
[329788949,1718674286191,-500.0,0.00022465,3]
[329788950,1718674286201,-5713.96,0.00022465,3]
[329788951,1718674286210,-1919.7,0.00022465,3]
[329788952,1718674286221,-500.0,0.00022465,3]
[329788953,1718674286231,-5867.13,0.00022465,3]
[329788954,1718674286241,-500.0,0.00022465,3]
[329788955,1718674286251,-7405.63,0.00022465,3]
[329788956,1718674286261,-723.85,0.00022465,3]
[329788957,1718674286271,-946.53,0.00022465,3]
[329788958,1718674286281,-503.96526955,0.00022465,3]
[329788959,1718674286290,-1153.45,0.00022465,3]
[329788960,1718674286300,-500.0,0.00022465,3]
[329788961,1718674286310,-500.0,0.00022465,3]
[329788962,1718674286319,-500.0,0.00022465,3]
[329788963,1718674286329,-2856.53,0.00022465,3]
[329788964,1718674286339,-1097.51,0.00022465,3]
[329788965,1718674286354,-500.0,0.00022465,3]
[329788966,1718674286362,-500.0,0.00022465,3]
[329788967,1718674286371,-504.43848752,0.00022465,3]
[329788968,1718674286381,-500.0,0.00022465,3]
[329788969,1718674286390,-1006.89,0.00022465,3]
[329788970,1718674286399,-3740.45,0.00022465,3]
[329788971,1718674286409,-34317.45,0.00022465,3]
[329788972,1718674286418,-2059.45,0.00022465,3]
[329788973,1718674286426,-151.08309696,0.00022465,3]
[329788974,1718674286435,-500.0,0.00022465,3]
[329788975,1718674286449,-500.0,0.00022465,3]
[329788976,1718674286459,-230.86102516,0.00022465,3]
[329788977,1718674286468,-500.0,0.00022465,3]
[329788978,1718674286644,-500.0,0.00022465,3]
[329788979,1718674286655,-500.0,0.00022465,3]
[329788980,1718674286665,-535.94,0.00022465,3]
[329788981,1718674286676,-627.92,0.00022465,3]
[329788982,1718674286686,-3644.66,0.00022465,3]
[329788983,1718674286696,-500.0,0.00022465,3]
[329788984,1718674286706,-1824.82,0.00022465,3]
[329788985,1718674286716,-500.0,0.00022465,3]
[329788986,1718674286727,-1266.32,0.00022465,3]
[329788987,1718674286737,-748.42,0.00022465,3]
[329788988,1718674286747,-1988.37,0.00022465,3]
[329788989,1718674286756,-12454.15,0.00022465,3]
[329788990,1718674286766,-500.0,0.00022465,3]
[329788991,1718674286777,-993.76,0.00022465,3]
[329788992,1718674286787,-624.40078879,0.00022465,3]
[329788993,1718674286797,-674.03,0.00022465,3]
[329788994,1718674286806,-500.0,0.00022465,2]
[329788995,1718674286815,-500.0,0.00022465,3]
[329788996,1718674286825,-506.55175068,0.00022465,3]
[329788997,1718674286835,-427.515366,0.00022466,2]
[329788998,1718674286844,-300.0,0.00022508,2]
[329788999,1718674286862,-152.0,0.00022578,4]
[329789000,1718674286871,-1118.79581983,0.00022597,2]
[329789001,1718674286882,-500.0,0.00022602,2]
[329789002,1718674286891,-500.0,0.00022602,2]
[329789003,1718674286901,-500.0,0.00022602,2]
[329789004,1718674286911,-500.0,0.00022602,2]
[329789005,1718674286921,-500.0,0.00022602,2]
[329789006,1718674286931,-500.0,0.00022602,2]
[329789007,1718674286941,-500.0,0.00022602,2]
[329789008,1718674286951,-500.0,0.00022602,2]
[329789009,1718674286960,-500.0,0.00022602,2]
[329789010,1718674286970,-500.0,0.00022602,2]
[329789011,1718674286979,-500.0,0.00022602,2]
[329789012,1718674286988,-500.0,0.00022602,2]
[329789013,1718674286998,-500.0,0.00022602,2]
[329789014,1718674287008,-500.0,0.00022602,2]
[329789015,1718674287017,-500.0,0.00022602,2]
[329789016,1718674287027,-500.0,0.00022602,2]
[329789017,1718674287036,-500.0,0.00022602,2]
[329789018,1718674287046,-500.0,0.00022602,2]
[329789019,1718674287056,-500.0,0.00022602,2]
[329789020,1718674287065,-500.0,0.00022602,2]
[329789021,1718674287075,-500.0,0.00022602,2]
[329789022,1718674287085,-500.0,0.00022602,2]
[329789023,1718674287094,-500.0,0.00022602,2]
[329789024,1718674287113,-500.0,0.00022602,2]
[329789025,1718674287123,-500.0,0.00022602,2]
[329789026,1718674287132,-500.0,0.00022602,2]
[329789027,1718674287142,-500.0,0.00022602,2]
[329789028,1718674287152,-500.0,0.00022602,2]
[329789029,1718674287162,-500.0,0.00022602,2]
[329789030,1718674287172,-500.0,0.00022602,2]
[329789031,1718674287182,-337.68,0.00022602,2]
[329789032,1718674287191,-327.72439793,0.00022665,2]
[329789033,1718674287201,-2000.0,0.00022667,2]
[329789034,1718674287210,-200.0,0.00022667,2]
[329789035,1718674287221,-2000.0,0.00022667,2]
[329789036,1718674287231,-200.0,0.00022667,2]
[329789037,1718674287241,-2000.0,0.00022667,2]
[329789038,1718674287251,-200.0,0.00022667,2]
[329789039,1718674287260,-150.0,0.00022738,10]
[329789040,1718674287270,-500.0,0.00022739,3]
[329789041,1718674287281,-616.09,0.00022739,3]
[329789042,1718674287290,-500.0,0.00022739,3]
[329789043,1718674287300,-500.0,0.00022739,3]
[329789044,1718674287310,-500.0,0.00022739,3]
[329789045,1718674287319,-500.0,0.00022739,3]
[329789046,1718674287328,-500.0,0.00022739,3]
[329789047,1718674287338,-500.0,0.00022739,3]
[329789048,1718674287351,-500.0,0.00022739,3]
[329789049,1718674287363,-500.0,0.00022739,3]
[329789050,1718674287372,-500.0,0.00022739,3]
[329789051,1718674287381,-500.0,0.00022739,3]
[329789052,1718674287390,-500.0,0.00022739,3]
[329789053,1718674287399,-500.0,0.00022739,3]
[329789054,1718674287408,-405.40064598,0.00022739,3]
[329789055,1718674287418,-500.0,0.00022739,3]
[329789056,1718674287428,-500.0,0.00022739,3]
[329789057,1718674287437,-500.0,0.00022739,3]
[329789058,1718674287449,-500.0,0.00022739,3]
[329789059,1718674287458,-500.0,0.00022739,3]
[329789060,1718674287473,-500.0,0.00022739,3]
[329789061,1718674287482,-500.0,0.00022739,3]
[329789062,1718674287492,-500.0,0.00022739,3]
[329789063,1718674287502,-704.53,0.00022739,3]
[329789064,1718674287513,-536.86451775,0.00022739,3]
[329789065,1718674287523,-623.79,0.00022739,3]
[329789066,1718674287532,-500.0,0.00022739,3]
[329789067,1718674287542,-500.0,0.00022739,3]
[329789068,1718674287552,-500.0,0.00022739,3]
[329789069,1718674287562,-500.0,0.00022739,3]
[329789070,1718674287571,-500.0,0.00022739,3]
[329789071,1718674287580,-500.0,0.00022739,3]
[329789072,1718674287590,-584.73809837,0.00022739,3]
[329789073,1718674287605,-500.0,0.00022739,3]
[329789074,1718674287614,-500.0,0.00022739,3]
[329789075,1718674287623,-500.0,0.00022739,3]
[329789076,1718674287633,-638.81,0.00022739,3]
[329789077,1718674287642,-522.78609873,0.00022739,3]
[329789078,1718674287651,-500.0,0.00022739,3]
[329789079,1718674287660,-500.0,0.00022739,3]
[329789080,1718674287669,-500.0,0.00022739,3]
[329789081,1718674287679,-500.0,0.00022739,3]
[329789082,1718674287689,-500.0,0.00022739,3]
[329789083,1718674287699,-500.0,0.00022739,3]
[329789084,1718674287708,-548.87,0.00022739,3]
[329789085,1718674287718,-508.12222825,0.00022739,3]
[329789086,1718674287727,-500.0,0.00022739,3]
[329789087,1718674287737,-500.0,0.00022739,3]
[329789088,1718674287746,-500.0,0.00022739,3]
[329789089,1718674287756,-500.0,0.00022739,3]
[329789090,1718674287765,-621.7042445,0.00022739,3]
[329789091,1718674287775,-429.46,0.00022739,3]
[329789092,1718674287785,-500.0,0.00022739,3]
[329789093,1718674287795,-500.0,0.00022739,3]
[329789094,1718674287805,-500.0,0.00022739,3]
[329789095,1718674287814,-500.0,0.00022739,3]
[329789096,1718674287824,-500.0,0.00022739,3]
[329789097,1718674287834,-500.0,0.00022739,3]
[329789098,1718674287843,-500.0,0.00022739,3]
[329789099,1718674287862,-500.0,0.00022739,3]
[329789100,1718674287871,-500.0,0.00022739,3]
[329789101,1718674287880,-500.0,0.00022739,3]
[329789102,1718674287889,-500.0,0.00022739,3]
[329789103,1718674287899,-500.0,0.00022739,3]
[329789104,1718674287908,-500.0,0.00022739,3]
[329789105,1718674287918,-500.0,0.00022739,3]
[329789106,1718674287927,-500.0,0.00022739,3]
[329789107,1718674287937,-500.0,0.00022739,3]
[329789108,1718674287946,-500.0,0.00022739,3]
[329789109,1718674287956,-500.0,0.00022739,3]
[329789110,1718674287965,-564.37,0.00022739,3]
[329789111,1718674287974,-597.17,0.00022739,3]
[329789112,1718674287984,-236.77,0.00022739,3]
[329789113,1718674287994,-500.0,0.00022739,3]
[329789114,1718674288004,-500.0,0.00022739,3]
[329789115,1718674288013,-348.92404542,0.00022739,3]
[329789116,1718674288023,-500.0,0.00022739,3]
[329789117,1718674288032,-500.0,0.00022739,3]
[329789118,1718674288042,-500.0,0.00022739,3]
[329789119,1718674288051,-500.0,0.00022739,3]
[329789120,1718674288060,-500.0,0.00022739,3]
[329789121,1718674288070,-500.0,0.00022739,3]
[329789122,1718674288080,-500.0,0.00022739,3]
[329789123,1718674288090,-500.0,0.00022739,3]
[329789124,1718674288106,-376.19,0.00022739,3]
[329789125,1718674288116,-500.0,0.00022739,3]
[329789126,1718674288126,-500.0,0.00022739,3]
[329789127,1718674288136,-500.0,0.00022739,3]
[329789128,1718674288146,-396.62,0.00022739,3]
[329789129,1718674288155,-500.0,0.00022739,3]
[329789130,1718674288164,-511.93024097,0.00022739,3]
[329789131,1718674288173,-271.64658889,0.00022739,3]
[329789132,1718674288183,-500.0,0.00022739,3]
[329789133,1718674288192,-500.0,0.00022739,3]
[329789134,1718674288202,-500.0,0.00022739,3]
[329789135,1718674288211,-500.0,0.00022739,3]
[329789136,1718674288221,-500.0,0.00022739,3]
[329789137,1718674288230,-500.0,0.00022739,3]
[329789138,1718674288240,-500.0,0.00022739,3]
[329789139,1718674288250,-509.79,0.00022739,3]
[329789140,1718674288259,-500.0,0.00022739,3]
[329789141,1718674288269,-500.0,0.00022739,3]
[329789142,1718674288278,-153.41,0.00022739,3]
[329789143,1718674288287,-500.0,0.00022739,3]
[329789144,1718674288297,-500.0,0.00022739,3]
[329789145,1718674288306,-500.0,0.00022739,3]
[329789146,1718674288316,-500.0,0.00022739,3]
[329789147,1718674288326,-563.11,0.00022739,3]
[329789148,1718674288336,-500.0,0.00022739,3]
[329789149,1718674288345,-500.0,0.00022739,3]
[329789150,1718674288362,-500.0,0.00022739,3]
[329789151,1718674288372,-500.0,0.00022739,3]
[329789152,1718674288381,-539.41006883,0.00022739,3]
[329789153,1718674288390,-500.0,0.00022739,3]
[329789154,1718674288400,-500.0,0.00022739,3]
[329789155,1718674288409,-616.55307782,0.00022739,3]
[329789156,1718674288418,-500.0,0.00022739,3]
[329789157,1718674288427,-500.0,0.00022739,3]
[329789158,1718674288437,-500.0,0.00022739,3]
[329789159,1718674288451,-500.0,0.00022739,3]
[329789160,1718674288460,-500.0,0.00022739,3]
[329789161,1718674288470,-500.0,0.00022739,3]
[329789162,1718674288479,-826.84,0.00022739,3]
[329789163,1718674288490,-505.28384914,0.00022739,3]
[329789164,1718674288500,-537.07,0.00022739,3]
[329789165,1718674288510,-525.42993718,0.00022739,3]
[329789166,1718674288519,-500.0,0.00022739,3]
[329789167,1718674288529,-500.0,0.00022739,3]
[329789168,1718674288540,-500.0,0.00022739,3]
[329789169,1718674288549,-510.4,0.00022739,3]
[329789170,1718674288559,-666.38,0.00022739,3]
[329789171,1718674288568,-500.0,0.00022739,3]
[329789172,1718674288579,-500.0,0.00022739,3]
[329789173,1718674288588,-500.0,0.00022739,3]
[329789174,1718674288600,-500.0,0.00022739,3]
[329789175,1718674288611,-500.0,0.00022739,3]
[329789176,1718674288620,-500.0,0.00022739,3]
[329789177,1718674288630,-500.0,0.00022739,3]
[329789178,1718674288639,-500.0,0.00022739,3]
[329789179,1718674288647,-823.84,0.00022739,3]
[329789180,1718674288656,-500.0,0.00022739,3]
[329789181,1718674288665,-500.0,0.00022739,3]
[329789182,1718674288674,-500.0,0.00022739,3]
[329789183,1718674288683,-500.0,0.00022739,3]
[329789184,1718674288693,-500.0,0.00022739,3]
[329789185,1718674288702,-500.0,0.00022739,3]
[329789186,1718674288712,-396.19576015,0.00022739,3]
[329789187,1718674288721,-500.0,0.00022739,3]
[329789188,1718674288730,-500.0,0.00022739,3]
[329789189,1718674288740,-629.66,0.00022739,3]
[329789190,1718674288749,-500.0,0.00022739,3]
[329789191,1718674288759,-500.0,0.00022739,3]
[329789192,1718674288768,-560.3,0.00022739,3]
[329789193,1718674288778,-500.0,0.00022739,3]
[329789194,1718674288787,-500.0,0.00022739,3]
[329789195,1718674288797,-500.0,0.00022739,3]
[329789196,1718674288807,-500.0,0.00022739,3]
[329789197,1718674288816,-582.33549267,0.00022739,3]
[329789198,1718674288825,-622.63,0.00022739,3]
[329789199,1718674288834,-500.0,0.00022739,2]
[329789200,1718674288843,-500.0,0.00022739,3]
[329789201,1718674288859,-500.0,0.00022739,3]
[329789202,1718674288869,-500.0,0.00022739,3]
[329789203,1718674288878,-500.0,0.00022739,3]
[329789204,1718674288887,-500.0,0.00022739,3]
[329789205,1718674288897,-515.5356207,0.00022739,3]
[329789206,1718674288907,-500.0,0.00022739,3]
[329789207,1718674288916,-1227.14,0.00022739,3]
[329789208,1718674288925,-500.0,0.00022739,3]
[329789209,1718674288934,-512.14017628,0.00022739,3]
[329789210,1718674288944,-500.0,0.00022739,3]
[329789211,1718674288953,-500.0,0.00022739,3]
[329789212,1718674288962,-500.0,0.00022739,3]
[329789213,1718674288971,-500.0,0.00022739,3]
[329789214,1718674288981,-769.34,0.00022739,3]
[329789215,1718674288990,-427.59238742,0.00022739,3]
[329789216,1718674288999,-1137.37,0.00022739,3]
[329789217,1718674289008,-500.0,0.00022739,3]
[329789218,1718674289018,-623.82,0.00022739,3]
[329789219,1718674289028,-507.31800881,0.00022739,3]
[329789220,1718674289037,-1897.66,0.00022739,3]
[329789221,1718674289047,-607.82250408,0.00022739,3]
[329789222,1718674289056,-500.0,0.00022739,3]
[329789223,1718674289065,-500.0,0.00022739,3]
[329789224,1718674289075,-500.0,0.00022739,3]
[329789225,1718674289084,-385.64056489,0.00022739,3]
[329789226,1718674289093,-500.0,0.00022739,3]
[329789227,1718674289110,-500.0,0.00022739,3]
[329789228,1718674289119,-649.03,0.00022739,3]
[329789229,1718674289128,-500.0,0.00022739,3]
[329789230,1718674289138,-1269.86,0.00022739,3]
[329789231,1718674289147,-500.0,0.00022739,3]
[329789232,1718674289157,-500.0,0.00022739,3]
[329789233,1718674289166,-500.0,0.00022739,3]
[329789234,1718674289175,-516.27501826,0.00022739,3]
[329789235,1718674289184,-500.0,0.00022739,3]
[329789236,1718674289193,-500.0,0.00022739,3]
[329789237,1718674289202,-500.0,0.00022739,3]
[329789238,1718674289211,-500.0,0.00022739,3]
[329789239,1718674289220,-500.0,0.00022739,3]
[329789240,1718674289229,-500.0,0.00022739,3]
[329789241,1718674289403,-500.0,0.00022739,3]
[329789242,1718674289413,-557.65,0.00022739,3]
[329789243,1718674289423,-500.0,0.00022739,3]
[329789244,1718674289432,-500.0,0.00022739,3]
[329789245,1718674289443,-500.0,0.00022739,3]
[329789246,1718674289453,-500.0,0.00022739,3]
[329789247,1718674289462,-972.39,0.00022739,3]
[329789248,1718674289476,-500.0,0.00022739,3]
[329789249,1718674289485,-1886.57,0.00022739,3]
[329789250,1718674289495,-500.0,0.00022739,3]
[329789251,1718674289504,-672.89,0.00022739,3]
[329789252,1718674289514,-500.0,0.00022739,3]
[329789253,1718674289523,-535.57,0.00022739,3]
[329789254,1718674289532,-500.0,0.00022739,3]
[329789255,1718674289541,-500.41777729,0.00022739,2]
[329789256,1718674289553,-500.0,0.00022739,3]
[329789257,1718674289563,-700.42,0.00022739,3]
[329789258,1718674289572,-500.0,0.00022739,3]
[329789259,1718674289581,-873.5,0.00022739,3]
[329789260,1718674289590,-500.0,0.00022739,3]
[329789261,1718674289606,-807.6,0.00022739,3]
[329789262,1718674289615,-500.0,0.00022739,3]
[329789263,1718674289625,-500.0,0.00022739,3]
[329789264,1718674289634,-896.7,0.00022739,3]
[329789265,1718674289643,-500.0,0.00022739,3]
[329789266,1718674289652,-624.3,0.00022739,3]
[329789267,1718674289661,-752.15,0.00022739,3]
[329789268,1718674289670,-500.0,0.00022739,3]
[329789269,1718674289680,-842.01,0.00022739,3]
[329789270,1718674289688,-500.0,0.00022739,3]
[329789271,1718674289697,-500.0,0.00022739,3]
[329789272,1718674289706,-500.0,0.00022739,3]
[329789273,1718674289716,-500.0,0.00022739,3]
[329789274,1718674289726,-502.04,0.00022739,3]
[329789275,1718674289735,-1147.33,0.00022739,3]
[329789276,1718674289745,-1019.7,0.00022739,3]
[329789277,1718674289754,-500.0,0.00022739,3]
[329789278,1718674289763,-732.68,0.00022739,3]
[329789279,1718674289772,-500.0,0.00022739,3]
[329789280,1718674289782,-500.0,0.00022739,3]
[329789281,1718674289791,-767.07,0.00022739,3]
[329789282,1718674289800,-513.08,0.00022739,3]
[329789283,1718674289809,-500.0,0.00022739,3]
[329789284,1718674289818,-407.53,0.00022739,3]
[329789285,1718674289828,-788.34,0.00022739,3]
[329789286,1718674289837,-500.0,0.00022739,3]
[329789287,1718674289846,-730.12,0.00022739,3]
[329789288,1718674289864,-500.0,0.00022739,3]
[329789289,1718674289873,-500.0,0.00022739,3]
[329789290,1718674289883,-500.0,0.00022739,3]
[329789291,1718674289891,-1154.5,0.00022739,3]
[329789292,1718674289901,-500.0,0.00022739,3]
[329789293,1718674289910,-500.0,0.00022739,3]
[329789294,1718674289919,-500.0,0.00022739,3]
[329789295,1718674289928,-500.0,0.00022739,3]
[329789296,1718674289937,-500.0,0.00022739,3]
[329789297,1718674289946,-572.62,0.00022739,3]
[329789298,1718674289955,-500.0,0.00022739,3]
[329789299,1718674289964,-500.0,0.00022739,3]
[329789300,1718674289973,-500.0,0.00022739,3]
[329789301,1718674289983,-500.0,0.00022739,3]
[329789302,1718674289992,-1069.23,0.00022739,3]
[329789303,1718674290000,-1253.02,0.00022739,3]
[329789304,1718674290009,-500.0,0.00022739,3]
[329789305,1718674290019,-993.87,0.00022739,3]
[329789306,1718674290028,-500.0,0.00022739,3]
[329789307,1718674290037,-500.0,0.00022739,3]
[329789308,1718674290048,-500.0,0.00022739,3]
[329789309,1718674290057,-190.34201154,0.00022739,3]
[329789310,1718674290066,-500.0,0.00022739,3]
[329789311,1718674290075,-500.0,0.00022739,3]
[329789312,1718674290084,-500.0,0.00022739,3]
[329789313,1718674290093,-500.0,0.00022739,3]
[329789314,1718674290109,-821.46,0.00022739,3]
[329789315,1718674290118,-500.0,0.00022739,3]
[329789316,1718674290127,-970.91,0.00022739,3]
[329789317,1718674290136,-500.0,0.00022739,3]
[329789318,1718674290144,-500.0,0.00022739,3]
[329789319,1718674290154,-760.9,0.00022739,3]
[329789320,1718674290163,-522.4,0.00022739,3]
[329789321,1718674290172,-500.0,0.00022739,3]
[329789322,1718674290181,-500.0,0.00022739,3]
[329789323,1718674290189,-500.0,0.00022739,3]
[329789324,1718674290199,-602.86,0.00022739,3]
[329789325,1718674290208,-1083.8,0.00022739,3]
[329789326,1718674290217,-197.49263456,0.00022739,3]
[329789327,1718674290226,-500.0,0.00022739,3]
[329789328,1718674290236,-500.0,0.00022739,3]
[329789329,1718674290245,-853.53,0.00022739,3]
[329789330,1718674290256,-500.0,0.00022739,3]
[329789331,1718674290265,-500.0,0.00022739,3]
[329789332,1718674290275,-603.93,0.00022739,3]
[329789333,1718674290284,-500.0,0.00022739,3]